lending/lending_fUSD_20240219
["ID","MTS","AMOUNT","RATE_DAILY","PERIOD"]
[314410552,1708302644350,-526.31911854,0.00039726,4]
[314410553,1708302644360,-500.0,0.00039726,4]
[314410554,1708302644369,-218.09253098,0.00039726,4]
[314410555,1708302644378,-500.0,0.00039726,4]
[314410556,1708302644387,-576.1247614,0.00039726,4]
[314410557,1708302644397,-557.993596,0.00039726,4]
[314410558,1708302644406,-500.0,0.00039726,4]
[314410559,1708302644414,-231.52994452,0.00039726,4]
[314410560,1708302644424,-500.0,0.00039726,4]
[314410561,1708302644433,-500.0,0.00039726,4]
[314410562,1708302644442,-500.0,0.00039726,4]
[314410563,1708302644451,-535.9530965,0.00039726,4]
[314410564,1708302644461,-500.0,0.00039726,4]
[314410565,1708302644470,-500.0,0.00039726,4]
[314410566,1708302644479,-500.0,0.00039726,4]
[314410567,1708302644488,-500.0,0.00039726,4]
[314410568,1708302644498,-500.0,0.00039726,4]
[314410569,1708302644507,-500.0,0.00039726,4]
[314410570,1708302644517,-522.8,0.00039726,4]
[314410571,1708302644526,-500.0,0.00039726,4]
[314410572,1708302644535,-500.0,0.00039726,4]
[314410573,1708302644544,-518.74657426,0.00039726,4]
[314410574,1708302644554,-500.0,0.00039726,4]
[314410575,1708302644563,-500.0,0.00039726,4]
[314410576,1708302644573,-500.0,0.00039726,4]
[314410577,1708302644583,-500.0,0.00039726,4]
[314410578,1708302644593,-500.0,0.00039726,4]
[314410579,1708302644602,-500.0,0.00039726,4]
[314410580,1708302644612,-500.0,0.00039726,4]
[314410581,1708302644621,-500.0,0.00039726,4]
[314410582,1708302644630,-500.0,0.00039726,4]
[314410583,1708302644639,-500.0,0.00039726,4]
[314410584,1708302644649,-500.0,0.00039726,4]
[314410585,1708302644658,-500.0,0.00039726,4]
[314410586,1708302644668,-500.0,0.00039726,4]
[314410587,1708302644677,-500.0,0.00039726,4]
[314410588,1708302644686,-500.0,0.00039726,4]
[314410589,1708302644696,-500.0,0.00039726,4]
[314410590,1708302644705,-500.0,0.00039726,4]
[314410591,1708302644714,-500.0,0.00039726,4]
[314410592,1708302644723,-500.0,0.00039726,4]
[314410593,1708302644732,-500.0,0.00039726,4]
[314410594,1708302644741,-500.0,0.00039726,2]
[314410595,1708302644750,-500.0,0.00039726,4]
[314410596,1708302644760,-500.0,0.00039726,4]
[314410597,1708302644769,-500.0,0.00039726,4]
[314410598,1708302644778,-478.91,0.00039726,4]
[314410599,1708302644787,-500.0,0.00039726,4]
[314410600,1708302644796,-500.0,0.00039726,4]
[314410601,1708302644805,-1082.57,0.00039726,4]
[314410602,1708302644814,-1082.57,0.00039726,4]
[314410603,1708302644823,-1082.57,0.00039726,4]
[314410604,1708302644832,-1082.57,0.00039726,4]
[314410605,1708302644842,-1082.57,0.00039726,4]
[314410606,1708302644853,-1082.57,0.00039726,4]
[314410607,1708302644862,-1082.57,0.00039726,4]
[314410608,1708302644871,-1082.57,0.00039726,4]
[314410609,1708302644880,-1082.57,0.00039726,4]
[314410610,1708302644889,-1082.57,0.00039726,4]
[314410611,1708302644898,-1082.57,0.00039726,4]
[314410612,1708302644908,-1082.57,0.00039726,4]
[314410613,1708302644917,-1082.57,0.00039726,4]
[314410614,1708302644925,-1082.57,0.00039726,4]
[314410615,1708302644935,-1082.57,0.00039726,4]
[314410616,1708302644944,-317.03650785,0.00039726,4]
[314410617,1708302644953,-629.8,0.00039726,2]
[314410618,1708302644962,-629.8,0.00039726,2]
[314410619,1708302644971,-629.8,0.00039726,2]
[314410620,1708302644980,-629.8,0.00039726,2]
[314410621,1708302644989,-629.8,0.00039726,2]
[314410622,1708302644998,-629.8,0.00039726,2]
[314410623,1708302645007,-629.8,0.00039726,2]
[314410624,1708302645016,-629.8,0.00039726,2]
[314410625,1708302645024,-629.8,0.00039726,2]
[314410626,1708302645033,-629.8,0.00039726,2]
[314410627,1708302645043,-629.8,0.00039726,2]
[314410628,1708302645052,-629.8,0.00039726,2]
[314410629,1708302645061,-629.8,0.00039726,2]
[314410630,1708302645070,-629.8,0.00039726,2]
[314410631,1708302645079,-629.8,0.00039726,2]
[314410632,1708302645089,-514.78,0.00039726,4]
[314410633,1708302645099,-500.0,0.00039726,4]
[314410634,1708302645109,-500.0,0.00039726,4]
[314410635,1708302645118,-500.0,0.00039726,4]
[314410636,1708302645127,-500.0,0.00039726,4]
[314410637,1708302645137,-500.0,0.00039726,2]
[314410638,1708302645146,-500.0,0.00039726,4]
[314410639,1708302645155,-500.0,0.00039726,4]
[314410640,1708302645164,-500.0,0.00039726,4]
[314410641,1708302645173,-500.0,0.00039726,4]
[314410642,1708302645183,-150.0,0.00039742,2]
[314410643,1708302645193,-1168.708873,0.00039754,2]
[314410644,1708302645202,-150.0,0.00039776,2]
[314410645,1708302645211,-214.11,0.00039782,2]
[314410646,1708302645220,-150.0,0.00039787,2]
[314410647,1708302645230,-150.0,0.00039789,2]
[314410648,1708302645240,-159.0,0.000398,7]
[314410649,1708302645252,-205.21,0.00039809,2]
[314410650,1708302645262,-150.0,0.00039809,2]
[314410651,1708302645271,-150.0,0.00039823,2]
[314410652,1708302645281,-5000.0,0.00039824,31]
[314410653,1708302645291,-325.0,0.00039826,2]
[314410654,1708302645300,-150.0,0.0003983,2]
[314410655,1708302645310,-157.51975204,0.00039832,13]
[314410656,1708302645319,-500.0,0.00039879,4]
[314410657,1708302645330,-1082.57,0.00039879,4]
[314410658,1708302645340,-629.8,0.00039879,2]
[314410659,1708302645352,-63369.21191651,0.0003988,2]
[314410660,1708302645361,-150.0,0.00039884,2]
[314410661,1708302645371,-1006.39547268,0.000399,4]
[314410662,1708302645381,-1500.0,0.000399,31]
[314410663,1708302645391,-150.0,0.00039905,2]
[314410664,1708302645400,-7794.3386,0.0003991,2]
[314410665,1708302645410,-150.0,0.00039933,2]
[314410666,1708302645419,-157.51975204,0.00039943,13]
[314410667,1708302645428,-150.0,0.00039944,2]
[314410668,1708302645437,-155.06803093,0.0003997,4]
[314410669,1708302645446,-51613.75465524,0.00039972,2]
[314410670,1708302645455,-5250.0,0.0003999,29]
[314410671,1708302645464,-500.0,0.00039998,4]
[314410672,1708302645473,-500.0,0.00039999,2]
[314410673,1708302645482,-500.0,0.00039999,2]
[314410674,1708302645491,-500.0,0.00039999,2]
[314410676,1708302645500,-500.0,0.00039999,2]
[314410677,1708302645512,-500.0,0.00039999,2]
[314410678,1708302645522,-500.0,0.00039999,2]
[314410679,1708302645532,-500.0,0.00039999,2]
[314410680,1708302645542,-500.0,0.00039999,2]
[314410681,1708302645551,-500.0,0.00039999,2]
[314410682,1708302645561,-500.0,0.00039999,2]
[314410683,1708302645570,-500.0,0.00039999,2]
[314410684,1708302645579,-500.0,0.00039999,2]
[314410685,1708302645588,-500.0,0.00039999,2]
[314410686,1708302645597,-500.0,0.00039999,2]
[314410687,1708302645605,-500.0,0.00039999,2]
[314410688,1708302645615,-500.0,0.00039999,2]
[314410689,1708302645623,-500.0,0.00039999,2]
[314410690,1708302645632,-500.0,0.00039999,2]
[314410691,1708302645641,-500.0,0.00039999,2]
[314410692,1708302645650,-500.0,0.00039999,2]
[314410693,1708302645659,-500.0,0.00039999,2]
[314410694,1708302645668,-500.0,0.00039999,2]
[314410695,1708302645677,-500.0,0.00039999,2]
[314410696,1708302645686,-500.0,0.00039999,2]
[314410697,1708302645695,-500.0,0.00039999,2]
[314410698,1708302645704,-500.0,0.00039999,2]
[314410699,1708302645713,-500.0,0.00039999,2]
[314410700,1708302645722,-500.0,0.00039999,2]
[314410701,1708302645731,-500.0,0.00039999,2]
[314410702,1708302645740,-500.0,0.00039999,2]
[314410703,1708302645749,-500.0,0.00039999,2]
[314410704,1708302645758,-500.0,0.00039999,2]
[314410705,1708302645767,-500.0,0.00039999,2]
[314410706,1708302645776,-210.0,0.0004,2]
[314410707,1708302645785,-3406.04,0.0004,5]
[314410708,1708302645794,-3000.0,0.0004,10]
[314410709,1708302645803,-28951.01594637,0.0004,30]
[314410710,1708302645811,-155.47056281,0.0004,4]
[314410711,1708302645820,-254.38382888,0.0004,2]
[314410712,1708302645829,-792.07591603,0.0004,7]
[314410713,1708302645838,-268.0,0.0004,29]
[314410714,1708302645847,-4983.0,0.0004,8]
[314410715,1708302645856,-255.0,0.0004,12]
[314410716,1708302645865,-214.0,0.0004,2]
[314410717,1708302645874,-211.0,0.0004,2]
[314410718,1708302645883,-210.0,0.0004,2]
[314410719,1708302645893,-216.0,0.0004,2]
[314410720,1708302645901,-3360.0,0.0004,10]
[314410721,1708302645910,-255.0,0.0004,12]
[314410722,1708302645919,-2012.9531,0.0004,5]
[314410723,1708302645928,-2019.5566,0.0004,5]
[314410724,1708302645937,-200.0,0.0004,15]
[314410725,1708302645946,-3000.0,0.0004,41]
[314410726,1708302645956,-3000.0,0.0004,41]
[314410727,1708302645965,-255.0,0.0004,12]
[314410728,1708302645975,-150.0,0.0004,12]
[314410729,1708302645984,-163.687869,0.0004,12]
[314410730,1708302645994,-238.478187,0.0004,12]
[314410731,1708302646003,-255.0,0.0004,12]
[314410732,1708302646012,-150.0,0.0004,12]
[314410733,1708302646021,-1897.501734,0.0004,12]
[314410734,1708302646031,-1991.238767,0.0004,12]
[314410735,1708302646039,-1991.238766,0.0004,12]
[314410736,1708302646048,-255.0,0.0004,12]
[314410737,1708302646057,-255.0,0.0004,12]
[314410738,1708302646067,-154.921969,0.0004,15]
[314410739,1708302646076,-189.793423,0.0004,2]
[314410740,1708302646086,-170.832469,0.0004,2]
[314410741,1708302646095,-5009.0,0.0004,2]
[314410742,1708302646104,-5009.0,0.0004,2]
[314410743,1708302646114,-255.0,0.0004,12]
[314410744,1708302646123,-275.5,0.0004,2]
[314410745,1708302646132,-309.06,0.0004,2]
[314410746,1708302646142,-16000.0,0.0004,2]
[314410747,1708302646151,-3160.17574998,0.0004,2]
[314410748,1708302646160,-1082.57,0.00040009,4]
[314410749,1708302646170,-205.21,0.0004001,2]
[314410750,1708302646179,-4819.74636,0.0004001,41]
[314410751,1708302646188,-3000.0,0.0004001,41]
[314410752,1708302646197,-500.0,0.0004001,2]
[314410753,1708302646206,-500.0,0.0004002,2]
[314410754,1708302646215,-500.0,0.0004002,2]
[314410755,1708302646224,-500.0,0.0004002,2]
[314410756,1708302646233,-500.0,0.0004002,2]
[314410757,1708302646243,-500.0,0.0004002,2]
[314410758,1708302646255,-500.0,0.0004002,2]
[314410759,1708302646264,-500.0,0.0004002,2]
[314410760,1708302646273,-500.0,0.0004002,2]
[314410761,1708302646282,-500.0,0.0004002,2]
[314410762,1708302646291,-500.0,0.0004002,2]
[314410763,1708302646300,-500.0,0.0004002,2]
[314410764,1708302646310,-500.0,0.0004002,2]
[314410765,1708302646319,-500.0,0.0004002,2]
[314410766,1708302646328,-500.0,0.0004002,2]
[314410767,1708302646337,-500.0,0.0004002,2]
[314410768,1708302646347,-500.0,0.0004002,2]
[314410769,1708302646356,-500.0,0.0004002,2]
[314410770,1708302646365,-500.0,0.0004002,2]
[314410771,1708302646374,-500.0,0.0004002,2]
[314410772,1708302646384,-500.0,0.0004002,2]
[314410773,1708302646393,-500.0,0.0004002,2]
[314410774,1708302646401,-500.0,0.0004002,2]
[314410775,1708302646410,-500.0,0.0004002,2]
[314410776,1708302646419,-500.0,0.0004002,2]
[314410777,1708302646428,-500.0,0.0004002,2]
[314410778,1708302646438,-500.0,0.0004002,2]
[314410779,1708302646446,-500.0,0.0004002,2]
[314410780,1708302646456,-500.0,0.0004002,2]
[314410781,1708302646465,-500.0,0.0004002,2]
[314410782,1708302646474,-500.0,0.0004002,2]
[314410783,1708302646483,-500.0,0.0004002,2]
[314410784,1708302646492,-500.0,0.0004002,2]
[314410785,1708302646500,-500.0,0.0004002,2]
[314410786,1708302646510,-500.0,0.0004002,2]
[314410787,1708302646520,-500.0,0.0004002,2]
[314410788,1708302646529,-500.0,0.0004002,2]
[314410789,1708302646538,-500.0,0.0004002,2]
[314410790,1708302646546,-500.0,0.0004002,2]
[314410791,1708302646555,-500.0,0.0004002,2]
[314410792,1708302646564,-500.0,0.0004002,2]
[314410793,1708302646573,-500.0,0.0004002,2]
[314410794,1708302646582,-500.0,0.0004002,2]
[314410795,1708302646591,-500.0,0.0004002,2]
[314410796,1708302646600,-500.0,0.0004002,2]
[314410797,1708302646609,-500.0,0.0004002,2]
[314410798,1708302646618,-500.0,0.0004002,2]
[314410799,1708302646627,-500.0,0.0004002,2]
[314410800,1708302646636,-500.0,0.0004002,2]
[314410801,1708302646645,-500.0,0.0004002,2]
[314410802,1708302646654,-500.0,0.0004002,2]
[314410803,1708302646663,-500.0,0.0004002,2]
[314410804,1708302646672,-500.0,0.0004002,2]
[314410805,1708302646681,-5489.112257,0.0004002,41]
[314410806,1708302646690,-1168.708873,0.00040022,2]
[314410807,1708302646699,-156.49,0.00040023,2]
[314410808,1708302646708,-157.51975204,0.00040054,13]
[314410809,1708302646717,-500.0,0.00040114,2]
[314410810,1708302646726,-611.95819331,0.00040116,30]
[314410811,1708302646735,-530.08261377,0.00040116,30]
[314410812,1708302646744,-1640.74763354,0.00040116,30]
[314410813,1708302646753,-191.04227264,0.00040116,30]
[314410814,1708302646762,-576.73552971,0.00040116,30]
[314410815,1708302646771,-500.0,0.00040136,2]
[314410816,1708302646781,-157.51975204,0.00040164,14]
[314410817,1708302646790,-200.0,0.000402,14]
[314410818,1708302646799,-205.21,0.00040211,2]
[314410819,1708302646808,-500.0,0.00040217,2]
[314410820,1708302646817,-5000.0,0.00040247,2]
[314410821,1708302646826,-750.0,0.00040263,2]
[314410822,1708302646835,-244.931455,0.00040274,14]
[314410823,1708302646845,-157.51975204,0.00040275,14]
[314410824,1708302646854,-162.66388374,0.00040275,2]
[314410825,1708302646863,-1894.45251862,0.00040275,2]
[314410826,1708302646872,-1086.7510806,0.00040275,2]
[314410827,1708302646881,-1168.708873,0.00040291,2]
[314410828,1708302646890,-500.0,0.00040299,4]
[314410829,1708302646899,-10996.24468712,0.000403,2]
[314410830,1708302646908,-6689.83216128,0.00040317,2]
[314410831,1708302646918,-1082.57,0.00040319,4]
[314410832,1708302646927,-629.8,0.00040319,2]
[314410833,1708302646936,-150.0,0.00040319,3]
[314410834,1708302646945,-150.0,0.00040319,3]
[314410835,1708302646954,-18041.5246728,0.0004032,2]
[314410836,1708302646963,-383622.1382214,0.0004032,2]
[314410837,1708302646972,-8971.3818996,0.0004032,2]
[314410838,1708302646981,-500.0,0.0004032,2]
[314410839,1708302646991,-500.0,0.00040326,4]
[314410840,1708302647000,-629.8,0.00040326,2]
[314410841,1708302647009,-6689.83216128,0.00040345,2]
[314410842,1708302647018,-500.0,0.00040347,4]
[314410843,1708302647027,-367.58700001,0.00040347,4]
[314410844,1708302647036,-1082.57,0.00040347,4]
[314410845,1708302647045,-1082.57,0.00040347,4]
[314410846,1708302647055,-1082.57,0.00040347,4]
[314410847,1708302647064,-1082.57,0.00040347,4]
[314410848,1708302647074,-1082.57,0.00040347,4]
[314410849,1708302647083,-1082.68220001,0.00040347,4]
[314410850,1708302647092,-629.8,0.00040347,2]
[314410851,1708302647102,-629.8,0.00040347,2]
[314410852,1708302647111,-629.8,0.00040347,2]
[314410853,1708302647120,-629.8,0.00040347,2]
[314410854,1708302647129,-629.8,0.00040347,2]
[314410855,1708302647138,-630.02846634,0.00040347,2]
[314410856,1708302647148,-153.0,0.00040348,7]
[314410857,1708302647157,-14330.8210863,0.00040348,2]
[314410858,1708302647166,-10620.1174997,0.00040348,2]
[314410859,1708302647176,-6909.4139132,0.00040348,2]
[314410860,1708302647185,-304485.8991121,0.00040348,2]
[314410861,1708302647194,-54650.47989817,0.00040348,2]
[314410866,1708302647841,-1097.61834312,0.0003904,2]
[314410867,1708302647851,-300.02,0.0003915,2]
[314410868,1708302647861,-3318.4901846,0.0003915,2]
[314410869,1708302647870,-170699.18010453,0.00040348,2]
[314410870,1708302647880,-78099.42721658,0.00040348,2]
[314410871,1708302647919,-14831.26565287,0.00040348,2]
[314410882,1708303745111,-1885.0,0.000329,2]
[314410883,1708303745132,-1402.3053,0.000329,2]
[314410897,1708303831878,-588.94638895,0.000328,2]
[314410898,1708303831934,-0.62781698,0.000328,2]
[314410899,1708303831944,-495.57327011,0.000329,2]
[314410900,1708303831960,-261.52379354,0.000329,2]
[314410901,1708303831971,-501.60294956,0.000329,2]
[314410902,1708303831997,-7662.99468679,0.000329,2]
[314410903,1708303832007,-6547.34678522,0.000329,4]
[314410904,1708303832016,-6547.34678522,0.000329,4]
[314410905,1708303832025,-463.12,0.0003604,2]
[314410906,1708303832034,-127.84622297,0.00037,38]
[314410907,1708303832046,-172.15377703,0.00037,38]
[314410908,1708303832055,-146.58986215,0.000377,2]
[314410909,1708303832067,-3.41013785,0.000377,2]
[314410910,1708303832076,-512.88379435,0.00037723,2]
[314410911,1708303832088,-624.12620565,0.00037723,2]
[314410912,1708303832097,-522.06,0.00037723,2]
[314410913,1708303832107,-150.1,0.00037805,2]
[314410914,1708303832117,-151.45,0.00037807,2]
[314410915,1708303832126,-144.82400081,0.00037891,7]
[314410916,1708303832144,-36.66467289,0.00037891,7]
[314410917,1708303832154,-268.77899013,0.00037891,7]
[314410918,1708303832162,-362.46957187,0.00037891,7]
[314410919,1708303832173,-209.62088566,0.00037891,7]
[314410920,1708303832182,-228.26083907,0.00037891,7]
[314410921,1708303832193,-282.22020521,0.00037891,7]
[314410922,1708303832203,-359.77352266,0.00037891,7]
[314410923,1708303832212,-220.69694209,0.00037891,7]
[314410924,1708303832221,-224.39841643,0.00037891,7]
[314410925,1708303832230,-152.42586658,0.00037931,2]
[314410926,1708303832239,-300.0,0.00038,39]
[314410927,1708303832248,-150.04,0.00038165,2]
[314410928,1708303832257,-238.57756806,0.00038196,2]
[314410929,1708303832266,-49832.98782772,0.00038201,15]
[314410931,1708303832278,-811.05669613,0.00038201,15]
[314410932,1708303832290,-3658.5963647,0.00038201,15]
[314410933,1708303832301,-343.43039356,0.00038201,15]
[314410934,1708303832312,-437.93269508,0.00038201,15]
[314410935,1708303832323,-970.5346668,0.00038201,15]
[314410936,1708303832335,-591.53263812,0.00038201,15]
[314410937,1708303832358,-403.9,0.00038201,15]
[314410938,1708303838008,-1051.37076923,0.00038201,15]
[314410939,1708303838024,-5212.2,0.00038201,15]
[314410940,1708303838036,-3867.0865919,0.00038201,15]
[314410943,1708303838346,-52291.33384912,0.00038201,15]
[314410948,1708303840651,-1041.45227616,0.00038201,15]
[314410949,1708303840663,-16672.96539049,0.00038201,15]
[314410950,1708303840675,-342.53302919,0.00038201,15]
[314410951,1708303840730,-4505.56053191,0.00038201,15]
[314410952,1708303840796,-1061.54807742,0.000329,4]
[314410953,1708303840806,-1205.96551327,0.00038201,15]
[314410954,1708303841636,-47373.87383028,0.00038201,15]
[314410964,1708303842881,-1235.29000001,0.00038201,15]
[314410965,1708303842944,-1010.35096695,0.00038201,15]
[314410966,1708303842955,-4283.29506731,0.00038201,15]
[314410967,1708303843006,-2856.75090207,0.00038201,15]
[314410968,1708303843016,-1561.66883204,0.00038296,13]
[314410969,1708303843026,-2636.97933564,0.00038296,13]
[314410970,1708303843035,-216.375,0.00038296,10]
[314410971,1708303843044,-477.94,0.00038304,2]
[314410972,1708303843054,-463.12,0.00038304,2]
[314410973,1708303843063,-150.0,0.00038356,2]
[314410974,1708303843072,-524.83,0.00038356,15]
[314410975,1708303843092,-150.04,0.00038419,2]
[314410976,1708303843102,-238.57756804,0.00038507,2]
[314410977,1708303843112,-150.04,0.00038674,2]
[314410978,1708303843121,-238.57756804,0.00038818,2]
[314410979,1708303843131,-2000.0,0.000389,2]
[314410980,1708303843140,-150.04,0.00038928,2]
[314410981,1708303843150,-500.0,0.0003893,4]
[314410982,1708303843159,-6194.1009,0.00038931,2]
[314410983,1708303843169,-127931.1577,0.00038931,2]
[314410984,1708303843179,-31846.2641,0.00038978,2]
[314410985,1708303843189,-5000.0,0.00038986,2]
[314410986,1708303843198,-300.0,0.00039,40]
[314410987,1708303843208,-492.83,0.00039,21]
[314410988,1708303843217,-164.94,0.00039017,2]
[314410989,1708303843227,-1000.0,0.00039037,2]
[314410990,1708303843236,-167.14547745,0.00039078,12]
[314410991,1708303843246,-1042.73742604,0.00039078,2]
[314410993,1708303843257,-152.79753588,0.00039078,3]
[314410995,1708303843266,-162.66388374,0.00039078,2]
[314410997,1708303843276,-203.15281214,0.00039078,2]
[314410999,1708303843286,-7656.74559614,0.00039078,2]
[314411001,1708303843295,-5000.0,0.00039078,3]
[314411003,1708303843305,-2000.0,0.00039128,11]
[314411004,1708303843315,-59038.48455519,0.00039129,2]
[314411005,1708303843324,-238.57756804,0.00039129,2]
[314411006,1708303843334,-128626.89876566,0.00039168,3]
[314411007,1708303843343,-652356.421083,0.00039168,5]
[314411008,1708303843352,-250.0,0.00039177,2]
[314411009,1708303843362,-112103.44477575,0.00039178,2]
[314411010,1708303843376,-1631299.10522425,0.00039178,2]
[314411011,1708303843385,-39851.21994276,0.00039178,2]
[314411012,1708303843395,-480.04293279,0.00039178,2]
[314411013,1708303843405,-150.04,0.00039182,2]
[314411014,1708303843414,-167.14547734,0.00039186,12]
[314411015,1708303843424,-1000.0,0.0003926,2]
[314411016,1708303843436,-167.14547734,0.00039295,13]
[314411017,1708303843445,-866.7,0.000393,17]
[314411018,1708303843454,-150.0,0.00039366,2]
[314411019,1708303843464,-167.14547734,0.00039403,13]
[314411020,1708303843473,-150.04,0.00039437,2]
[314411021,1708303843483,-238.57756804,0.0003944,2]
[314411022,1708303843492,-151.45,0.0003945,2]
[314411023,1708303843502,-258.1613552,0.000395,2]
[314411024,1708303843511,-12394.9183,0.000395,2]
[314411025,1708303843524,-167.14547734,0.00039511,13]
[314411026,1708303843534,-167.14547734,0.0003962,13]
[314411027,1708303843543,-203.15281214,0.00039674,2]
[314411028,1708303843553,-7656.74559612,0.00039674,2]
[314411029,1708303843562,-150.04,0.00039691,2]
[314411030,1708303843575,-1404.55,0.00039695,2]
[314411031,1708303843585,-152.48,0.000397,3]
[314411032,1708303843594,-152.48,0.000397,3]
[314411033,1708303843603,-152.48,0.000397,3]
[314411034,1708303843612,-152.48,0.000397,3]
[314411035,1708303843622,-152.48,0.000397,3]
[314411036,1708303843631,-152.48,0.000397,3]
[314411037,1708303843640,-152.48,0.000397,3]
[314411038,1708303843652,-3359.09,0.000397,3]
[314411039,1708303843662,-3359.09,0.000397,3]
[314411040,1708303843672,-3359.09,0.000397,3]
[314411041,1708303843682,-3359.09,0.000397,3]
[314411042,1708303843691,-3359.09,0.000397,3]
[314411043,1708303843701,-3359.09,0.000397,3]
[314411044,1708303843711,-3359.09,0.000397,3]
[314411045,1708303843720,-3359.09,0.000397,3]
[314411046,1708303843729,-3359.09,0.000397,3]
[314411047,1708303843738,-3359.09,0.000397,3]
[314411048,1708303843747,-3359.09,0.000397,3]
[314411049,1708303843757,-3359.09,0.000397,3]
[314411050,1708303843766,-3359.09,0.000397,3]
[314411051,1708303843775,-3359.09,0.000397,3]
[314411052,1708303843784,-3359.09,0.000397,3]
[314411053,1708303843798,-3359.09,0.000397,3]
[314411054,1708303843807,-3359.09,0.000397,3]
[314411055,1708303843817,-3359.09,0.000397,3]
[314411056,1708303843826,-3359.09,0.000397,3]
[314411057,1708303843836,-3359.09,0.000397,3]
[314411058,1708303843845,-500.0,0.00039725,2]
[314411059,1708303843854,-500.0,0.00039726,4]
[314411060,1708303843864,-500.0,0.00039726,4]
[314411061,1708303843873,-500.0,0.00039726,4]
[314411062,1708303843882,-526.31911854,0.00039726,4]
[314411063,1708303843891,-500.0,0.00039726,2]
[314411064,1708303843901,-500.0,0.00039726,2]
[314411065,1708303843911,-500.0,0.00039726,2]
[314411066,1708303843920,-500.0,0.00039726,2]
[314411067,1708303843930,-500.0,0.00039726,2]
[314411068,1708303843940,-500.0,0.00039726,2]
[314411069,1708303843950,-603.5,0.00039726,2]
[314411070,1708303843960,-175.0,0.00039726,4]
[314411071,1708303843969,-500.0,0.00039726,2]
[314411072,1708303843978,-290.76569401,0.00039726,4]
[314411073,1708303843988,-546.96129113,0.00039726,4]
[314411074,1708303843997,-500.0,0.00039726,4]
[314411075,1708303844007,-569.40853215,0.00039726,4]
[314411076,1708303844016,-500.0,0.00039726,4]
[314411077,1708303844026,-500.0,0.00039726,2]
[314411078,1708303844035,-500.0,0.00039726,2]
[314411079,1708303844044,-500.0,0.00039726,2]
[314411080,1708303844053,-500.0,0.00039726,2]
[314411081,1708303844063,-500.0,0.00039726,2]
[314411082,1708303844072,-500.0,0.00039726,2]
[314411083,1708303844081,-627.49,0.00039726,2]
[314411084,1708303844090,-500.0,0.00039726,4]
[314411085,1708303844100,-500.0,0.00039726,4]
[314411086,1708303844109,-475.68152928,0.00039726,4]
[314411087,1708303844118,-546.66689023,0.00039726,4]
[314411088,1708303844127,-500.0,0.00039726,4]
[314411089,1708303844136,-500.0,0.00039726,4]
[314411090,1708303844146,-500.0,0.00039726,4]
[314411091,1708303844155,-500.0,0.00039726,4]
[314411092,1708303844164,-535.9530965,0.00039726,4]
[314411093,1708303844173,-500.0,0.00039726,4]
[314411094,1708303844182,-500.0,0.00039726,4]
[314411095,1708303844191,-500.0,0.00039726,4]
[314411096,1708303844201,-500.0,0.00039726,4]
[314411097,1708303844210,-500.0,0.00039726,4]
[314411098,1708303844220,-500.0,0.00039726,4]
[314411099,1708303844229,-522.8,0.00039726,4]
[314411100,1708303844242,-500.0,0.00039726,4]
[314411101,1708303844251,-500.0,0.00039726,4]